bitfinex/quotes_ETHUSD_20220202
["timestamp","ask_amount","ask_price","bid_price","bid_amount"]
[1643797135752,0.90413,2765.1,2764.8,0.1807]
[1643797135945,0.90413,2765.1,2764.6,2.55119135]
[1643797136147,0.3,2765.0,2764.6,2.55119135]
[1643797138801,0.3,2765.0,2764.6,1.80812]
[1643797139003,3.0125018,2765.0,2764.5,0.1807]
[1643797139204,0.3,2764.8,2764.5,0.1807]
[1643797139400,0.9042,2764.7,2764.5,0.1807]
[1643797139602,0.3,2764.6,2764.4,9.603579]
[1643797139800,0.3,2764.6,2764.4,10.29912357]
[1643797140202,0.3,2764.6,2764.4,9.603579]
[1643797140404,0.3,2764.6,2764.4,7.795329]
[1643797141449,0.9042,2764.7,2764.5,1.0]
[1643797141654,0.90409,2765.0,2764.5,1.18034]
[1643797141856,0.90409,2765.0,2764.5,2.98851]
[1643797142455,0.90409,2765.0,2764.5,1.80817]
[1643797142970,0.90409,2765.0,2764.5,1.80227]
[1643797143355,0.3,2764.9,2764.5,1.80227]
[1643797143757,0.90419,2764.7,2764.5,1.80227]
[1643797145023,2.0,2764.6,2764.3,0.36104]
[1643797145210,2.0,2764.6,2763.8,3.42944722]
[1643797145211,3.0037,2764.6,2763.8,0.25]
[1643797145510,0.3,2764.5,2763.8,0.25]
[1643797145711,1.68524,2764.4,2763.5,0.1808]
[1643797145912,1.9897784,2764.4,2764.1,0.90665435]
[1643797146119,0.90454,2764.4,2764.1,0.90665435]
[1643797146807,0.90454,2764.4,2764.0,0.18034]
[1643797150056,0.90454,2764.4,2764.0,0.92657713]
[1643797150255,0.90454,2764.4,2764.0,0.18034]
[1643797150455,1.8088584,2764.4,2764.0,0.18034]
[1643797154798,0.3,2764.3,2764.0,0.18034]
[1643797155800,1.8088584,2764.4,2764.0,0.18034]
[1643797157650,2.1088584,2764.4,2764.0,0.18034]
[1643797157948,1.8088584,2764.4,2764.0,0.18034]
[1643797158348,2.1088584,2764.4,2764.0,0.18034]
[1643797158548,1.8088584,2764.4,2764.0,0.18034]
[1643797159654,2.31960217,2764.3,2764.0,0.18034]
[1643797159906,3.77590217,2764.3,2764.0,0.18034]
[1643797160106,4.1697739,2764.3,2763.7,0.36104]
[1643797160305,2.8941739,2764.3,2763.7,0.1807]
[1643797160906,2.8941739,2764.3,2763.7,0.85978473]
[1643797161104,2.74960395,2764.3,2763.7,0.85978473]
[1643797161305,2.74960395,2764.3,2763.7,1.58338473]
[1643797161306,2.56890395,2764.3,2763.7,1.58338473]
[1643797161515,2.56890395,2764.3,2763.8,0.18034]
[1643797161707,2.56890395,2764.3,2764.2,0.85894038]
[1643797161708,0.9044639,2764.3,2764.2,0.85894038]
[1643797161910,0.9044639,2764.3,2764.2,1.03928038]
[1643797162109,1.8086732,2764.5,2764.2,1.03928038]
[1643797162312,0.90412,2764.7,2764.4,0.18034]
[1643797162514,0.1807,2765.1,2764.4,0.18034]
[1643797162810,3.1897,2765.8,2764.6,0.3309074]
[1643797162811,1.80807,2765.3,2764.6,0.3309074]
[1643797163010,0.6893341,2765.2,2764.4,1.50684]
[1643797163213,0.8700341,2765.2,2764.4,2.50684]
[1643797163411,0.8700341,2765.2,2764.4,4.31484]
[1643797163412,1.8080738,2765.0,2764.4,4.31484]
[1643797163649,1.8080738,2765.0,2764.4,1.18034]
[1643797163853,0.3,2764.9,2764.4,0.13034]
[1643797164055,0.3,2764.9,2764.4,1.13034]
[1643797164249,0.3,2764.9,2764.4,0.13034]
[1643797164651,2.1082717,2764.9,2764.5,0.18086]
[1643797165249,1.80848,2764.8,2764.5,0.18086]
[1643797165450,1.98918,2764.8,2764.5,0.18086]
[1643797165849,1.80848,2764.8,2764.5,0.18086]
[1643797166250,2.2889717,2764.9,2764.5,0.18086]
[1643797166450,2.1082717,2764.9,2764.5,0.18086]
[1643797167613,0.1807,2764.8,2764.5,0.18086]
[1643797168112,2.1082717,2764.9,2764.5,0.18086]
[1643797168113,2.2889717,2764.9,2764.5,0.18086]
[1643797168312,0.90413,2764.8,2764.5,0.18086]
[1643797169316,0.4807,2764.9,2764.5,0.18086]
[1643797169514,0.90404,2765.0,2764.5,0.18086]
[1643797169718,1.0848203,2765.1,2764.5,0.18086]
[1643797169915,0.1807,2765.1,2764.7,0.90405]
[1643797170115,0.1807,2765.2,2764.7,0.90405]
[1643797170414,0.1807,2765.2,2764.7,1.08491]
[1643797170616,0.1807,2765.2,2764.9,0.68101097]
[1643797171021,0.1807,2765.2,2764.9,1.58500097]
[1643797171254,0.1807,2765.3,2765.1,5.58086]
[1643797171458,0.1807,2765.5,2765.1,0.18086]
[1643797172253,0.61326842,2765.5,2765.1,0.18086]
[1643797173154,0.61326842,2765.5,2765.2,0.90389]
[1643797173155,0.91326842,2765.5,2765.2,0.90389]
[1643797173354,0.91326842,2765.5,2765.1,0.18086]
[1643797173355,1.81724602,2765.5,2765.1,0.18086]
[1643797178104,3.44449602,2765.5,2765.1,0.18086]
[1643797178304,0.90397,2765.4,2765.1,0.18086]
[1643797178754,1.20397,2765.4,2765.1,0.18086]
[1643797180354,2.13905711,2765.4,2764.9,0.90399]
[1643797180553,0.35917307,2765.3,2765.0,0.144605]
[1643797180755,0.35917307,2765.3,2764.9,0.90399]
[1643797180957,1.26321457,2765.3,2764.8,0.1807]
[1643797181158,5.22201847,2765.2,2764.8,0.1807]
[1643797181358,1.53171144,2765.1,2764.8,0.1807]
[1643797181757,1.88796992,2765.0,2764.8,0.1807]
[1643797181956,2.50884497,2764.9,2764.8,0.1807]
[1643797182416,2.108447,2764.8,2764.2,0.18086]
[1643797182810,2.408447,2764.8,2764.2,0.18086]
[1643797183009,2.408447,2764.8,2764.2,1.18086]
[1643797183613,2.408447,2764.8,2764.3,0.9042]
[1643797185312,0.41335871,2764.4,2764.3,0.9042]
[1643797185914,1.20421,2764.5,2764.3,0.9042]
[1643797186758,0.90421,2764.5,2764.3,0.9042]
[1643797188378,0.90421,2764.5,2764.4,0.18086]
[1643797188564,0.90266406,2764.5,2764.4,0.18086]
[1643797194260,1.20266406,2764.5,2764.4,0.18086]
[1643797194660,0.90266406,2764.5,2764.4,0.18086]
[1643797198910,0.90266406,2764.5,2764.1,0.18086]
[1643797198911,1.20266406,2764.5,2764.1,0.18086]
[1643797200711,1.20266406,2764.5,2763.9,0.1807]
[1643797200910,0.90434,2764.3,2763.9,0.1807]
[1643797201560,1.20434,2764.3,2763.9,0.1807]
[1643797201964,0.3,2764.2,2763.9,0.1807]
[1643797202159,3.0131013,2764.2,2763.8,0.1807]
[1643797202557,3.0131013,2764.2,2763.6,1.80853]
[1643797202558,3.0131013,2764.2,2763.7,0.1807]
[1643797202759,2.7131013,2764.2,2763.7,0.1807]
[1643797202960,2.7131013,2764.2,2763.7,1.1251312]
[1643797203758,2.7131013,2764.2,2763.8,0.90433]
[1643797204159,1.8087444,2764.5,2763.9,1.98927]
[1643797204160,1.80844,2764.5,2763.9,1.98927]
[1643797204460,1.08484,2764.6,2763.9,4.54114722]
[1643797204900,0.90414,2764.6,2763.9,4.54114722]
[1643797205304,0.90414,2764.6,2764.0,1.37117722]
[1643797205504,0.90414,2764.6,2764.1,0.90414]
[1643797205805,0.90414,2764.6,2764.2,0.18086]
[1643797206603,0.90414,2764.6,2764.3,0.90413]
[1643797206806,0.90414,2764.6,2764.5,0.18086]
[1643797208508,0.1807,2765.0,2764.5,0.18086]
[1643797208763,0.1807,2765.2,2764.6,3.01970256]
[1643797208959,0.90397,2765.2,2764.7,2.21049537]
[1643797209162,0.90397,2765.2,2764.7,1.19903189]
[1643797209359,0.90397,2765.2,2764.7,0.1807]
[1643797209561,0.90397,2765.2,2764.9,0.3811096]
[1643797209763,0.90397,2765.2,2765.1,0.18086]
[1643797212064,0.90397,2765.2,2765.0,0.144613]
[1643797212065,3.6397457,2765.2,2765.0,0.144613]
[1643797212265,2.1080514,2765.2,2765.0,0.144613]
[1643797212508,2.1080514,2765.2,2764.7,0.36156]
[1643797212509,1.53042606,2765.1,2764.7,0.36156]
[1643797213110,1.53042606,2765.1,2764.7,1.14048924]
[1643797213515,2.1080514,2765.2,2764.7,1.14048924]
[1643797213714,2.1080514,2765.2,2764.7,0.95978924]
[1643797213911,1.8080514,2765.2,2764.7,0.95978924]
[1643797214114,1.8080514,2765.2,2764.7,1.86384924]
[1643797214313,1.8080514,2765.2,2764.7,0.18086]
[1643797215213,0.3,2765.1,2764.5,1.98888]
[1643797215413,0.90409,2765.0,2764.8,0.90408]
[1643797215613,1.20409,2765.0,2764.8,0.90408]
[1643797219259,1.20409,2765.0,2764.9,0.18086]
[1643797219260,0.90409,2765.0,2764.9,0.18086]
[1643797219912,1.20409,2765.0,2764.9,0.18086]
[1643797220713,0.90409,2765.0,2764.9,0.18086]
[1643797223959,1.80797,2765.2,2764.9,0.18086]
[1643797224170,0.90388,2765.3,2764.9,0.18086]
[1643797224458,0.90388,2765.3,2765.0,0.90383]
[1643797224459,1.20388,2765.3,2765.0,0.90383]
[1643797224859,1.20388,2765.3,2765.0,1.90383]
[1643797225359,1.20388,2765.3,2765.2,0.18086]
[1643797225961,2.39685,2766.1,2765.3,6.7]
[1643797226167,0.1807,2766.2,2765.4,10.42334625]
[1643797226368,0.1807,2766.2,2765.5,0.36156]
[1643797226560,0.1807,2766.3,2766.2,5.72351262]
[1643797226762,1.414e-05,2766.4,2766.2,7.19701932]
[1643797226965,1.414e-05,2766.4,2766.2,6.4]
[1643797227161,1.414e-05,2766.4,2766.3,4.75]
[1643797227408,1.414e-05,2766.4,2766.3,5.83432]
[1643797227908,1.414e-05,2766.4,2766.3,2.08432]
[1643797228107,1.414e-05,2766.4,2766.3,2.76529422]
[1643797229106,1.414e-05,2766.4,2766.3,2.08432]
[1643797230307,1.414e-05,2766.4,2766.3,2.83263448]
[1643797232357,1.414e-05,2766.4,2766.3,2.78802]
[1643797232559,1.414e-05,2766.4,2766.3,8.03802]
[1643797233558,1.414e-05,2766.4,2766.3,8.99206778]
[1643797237011,1.414e-05,2766.4,2766.3,8.03802]
[1643797237412,1.414e-05,2766.4,2766.3,2.78802]
[1643797238117,1.414e-05,2766.4,2766.3,2.60732]
[1643797238517,1.414e-05,2766.4,2766.3,2.60647628]
[1643797244324,1.414e-05,2766.4,2766.2,2.58559787]
[1643797244533,1.414e-05,2766.4,2766.2,7.08559787]
[1643797244722,1.414e-05,2766.4,2766.2,2.58559787]
[1643797245323,1.414e-05,2766.4,2766.3,3.48086]
[1643797246357,1.414e-05,2766.4,2766.3,3.3]
[1643797248359,1.414e-05,2766.4,2766.3,4.07012386]
[1643797248657,1.414e-05,2766.4,2766.3,5.15443386]
[1643797248858,1.414e-05,2766.4,2766.3,6.15443386]
[1643797249663,1.414e-05,2766.4,2766.3,5.38431]
[1643797259012,1.414e-05,2766.4,2766.3,2.08431]
[1643797260217,1.414e-05,2766.4,2766.3,3.83431]
[1643797261260,1.414e-05,2766.4,2766.3,5.73719315]
[1643797261659,0.1807,2766.9,2766.5,0.90344]
[1643797261959,0.1807,2767.0,2766.5,3.79247492]
[1643797262563,0.1807,2767.0,2766.7,0.73017782]
[1643797262964,0.1807,2767.0,2766.7,1.63356782]
[1643797263164,0.1807,2767.1,2766.9,0.18086]
[1643797263566,0.1807,2767.6,2766.9,0.18086]
[1643797263965,0.1807,2767.6,2766.9,1.0842]
[1643797264164,0.1807,2767.6,2767.0,2.33318777]
[1643797264566,0.1807,2767.6,2767.0,3.33318777]
[1643797265107,1.80653,2767.9,2767.1,0.18086]
[1643797265108,0.33255798,2767.7,2767.1,0.18086]
[1643797265314,0.33255798,2767.7,2767.1,0.90321]
[1643797265315,0.63255798,2767.7,2767.1,0.90321]
[1643797265705,1.53058159,2767.6,2767.1,0.90321]
[1643797265906,0.1806,2767.6,2767.3,0.84912787]
[1643797266106,1.0838849,2767.6,2767.3,0.84912787]
[1643797266907,1.9871749,2767.6,2767.3,0.84912787]
[1643797267110,0.3,2767.5,2767.3,0.84912787]
[1643797267308,1.53059468,2767.5,2767.3,0.84912787]
[1643797267518,1.9871749,2767.6,2767.3,0.84912787]
[1643797267712,0.3,2767.5,2767.3,0.84912787]
[1643797269368,0.3,2767.5,2767.1,0.90321]
[1643797269774,0.3,2767.5,2767.1,1.90321]
[1643797270479,0.9032849,2767.6,2767.4,0.86450733]
[1643797270480,1.2032849,2767.6,2767.4,0.86450733]
[1643797272524,1.2032849,2767.6,2767.3,0.90321]
[1643797272525,0.9032849,2767.6,2767.3,0.90321]
[1643797272730,1.2032849,2767.6,2767.3,0.90321]
[1643797273131,2.1065649,2767.6,2767.3,0.90321]
[1643797273826,0.3,2767.4,2767.3,0.90321]
[1643797274828,2.1065649,2767.6,2767.3,0.90321]
[1643797277170,1.53053866,2767.5,2767.3,0.90321]
[1643797278171,1.53053866,2767.5,2767.3,2.75359645]
[1643797278376,1.53053866,2767.5,2767.3,0.90321]
[1643797278571,2.1065649,2767.6,2767.3,0.90321]
[1643797278871,2.1065649,2767.6,2767.3,2.78770962]
[1643797279071,2.1065649,2767.6,2767.3,0.90321]
[1643797279276,1.53054434,2767.5,2767.3,0.90321]
[1643797279473,2.1065649,2767.6,2767.3,0.90321]
[1643797279673,0.3,2767.4,2767.3,0.90321]
[1643797280122,1.5032849,2767.6,2767.3,2.75606451]
[1643797281823,1.2032849,2767.6,2767.3,2.75606451]
[1643797282424,1.2032849,2767.6,2767.3,0.90321]
[1643797283227,1.53049711,2767.5,2767.3,0.90321]
[1643797285672,1.5296845,2767.5,2767.3,0.90321]
[1643797286474,1.2032849,2767.6,2767.3,0.90321]
[1643797288532,0.86834474,2767.5,2767.3,0.90321]
[1643797288736,0.86834474,2767.5,2767.1,4.44630876]
[1643797288737,2.0,2767.4,2767.1,1.8064]
[1643797288941,2.7101433,2767.4,2767.0,0.1806]
[1643797289136,2.7101433,2767.4,2766.9,0.1806]
[1643797289137,5.0101433,2767.4,2766.9,0.1806]
[1643797289434,0.3,2767.3,2766.9,0.1806]
[1643797289633,3.0101433,2767.4,2766.9,0.1806]
[1643797289836,0.3,2767.3,2766.9,0.1806]
[1643797290136,1.20341,2767.3,2766.9,0.1806]
[1643797290334,1.20341,2767.3,2767.0,0.90326]
[1643797290335,0.6,2767.3,2767.0,0.90326]
[1643797290835,2.7101433,2767.4,2767.2,0.18086]
[1643797292062,3.0101433,2767.4,2767.3,0.18086]
[1643797292362,2.7101433,2767.4,2767.3,2.02511503]
[1643797292569,2.44906216,2768.0,2767.3,3.74738257]
[1643797292570,1.8063055,2767.8,2767.3,3.74738257]
[1643797292768,1.8063055,2767.8,2767.4,1.0]
[1643797292969,0.1806,2767.9,2767.5,2.51836675]
[1643797293168,0.1806,2767.9,2767.6,1.52434861]
[1643797293370,0.1806,2767.9,2767.6,0.36273173]
[1643797293573,3.76196405,2768.5,2767.6,0.36273173]
[1643797293574,0.1806,2768.4,2767.8,6.7]
[1643797293772,0.9028748,2768.3,2767.9,3.82688409]
[1643797293975,1.1544,2768.6,2768.0,1.5]
[1643797294170,1.08343,2769.0,2768.1,2.71482856]
[1643797294393,1.08343,2769.0,2768.2,1.0]
[1643797294569,1.08343,2769.0,2768.3,2.10261651]
[1643797294770,0.9028075,2768.6,2768.3,2.10261651]
[1643797295026,0.9028075,2768.6,2768.1,0.1806]
[1643797295219,2.7089875,2768.6,2768.0,1.5]
[1643797295420,1.08368,2768.5,2768.0,1.5]
[1643797295821,0.9030593,2768.4,2768.0,1.5]
[1643797296022,1.43268988,2768.3,2768.0,1.5]
[1643797296224,1.43268988,2768.3,2767.0,5.98269722]
[1643797296225,4.45644,2768.2,2767.4,0.1806]
[1643797296421,0.1806,2768.1,2767.4,0.1806]
[1643797296725,1.50328,2768.0,2767.3,0.1806]
[1643797296919,0.6,2768.0,2767.3,0.1806]
[1643797297120,0.6,2768.0,2767.5,0.76762007]
[1643797297121,0.903274,2767.9,2767.5,0.76762007]
[1643797297321,0.3,2767.8,2767.5,0.76762007]
[1643797297528,0.903274,2767.9,2767.5,0.76762007]
[1643797297723,0.3,2767.8,2767.5,1.76762007]
[1643797297926,0.3,2767.8,2767.6,0.18086]
[1643797298324,0.3,2767.8,2767.6,0.90305]
[1643797298757,0.3,2767.8,2767.5,2.75431007]
[1643797298958,0.3,2767.8,2767.5,2.57371007]
[1643797299557,0.33698004,2767.7,2767.5,2.57371007]
[1643797299761,1.24017574,2767.7,2767.5,1.80609]
[1643797299962,1.24017574,2767.7,2767.4,0.1806]
[1643797300162,0.3,2767.6,2767.3,1.08411]
[1643797300365,0.3,2767.6,2767.3,1.0812624]
[1643797300562,0.3,2767.6,2767.3,0.90325]
[1643797300765,0.3,2767.6,2767.2,0.1806]
[1643797300969,0.9032777,2767.5,2767.1,0.1806]
[1643797301165,0.3,2767.4,2767.1,0.1806]
[1643797302265,0.3,2767.4,2767.1,1.0839]
[1643797303525,0.3,2767.4,2767.1,0.9033]
[1643797304826,0.6,2767.4,2767.1,0.9033]
[1643797305027,0.6,2767.4,2767.1,1.80657]
[1643797305226,0.6,2767.4,2767.1,3.71201629]
[1643797305425,0.3,2767.4,2767.1,3.71201629]
[1643797305627,0.3,2767.4,2767.3,0.1780124]
[1643797305828,0.9032777,2767.5,2767.3,0.1780124]
[1643797306028,0.9032777,2767.5,2767.3,0.90324]
[1643797306471,1.70844091,2767.5,2767.3,0.90324]
[1643797306966,0.3,2767.4,2767.3,0.90324]
[1643797307567,0.9032777,2767.5,2767.3,0.90324]
[1643797307770,1.95848159,2768.6,2767.5,0.9031]
[1643797307771,1.0837073,2767.9,2767.5,0.9031]
[1643797307968,1.0837073,2767.9,2767.6,1.88753285]
[1643797308367,1.0837073,2767.9,2767.7,0.76133568]
[1643797308569,4.9125,2768.3,2767.8,1.88826185]
[1643797308570,0.1806,2768.1,2767.8,1.88826185]
[1643797308766,1.8970148,2768.0,2767.9,0.90302]
[1643797309167,1.53013705,2768.0,2767.9,2.92699938]
[1643797309368,0.9029925,2768.2,2767.9,2.92699938]
[1643797309567,1.53008297,2768.1,2767.9,3.92699938]
[1643797309776,0.3,2768.1,2767.9,0.90302]
[1643797310272,1.53011768,2768.0,2767.9,0.90302]
[1643797310465,1.53012216,2768.0,2767.9,1.0810324]
[1643797310665,1.87006564,2768.0,2767.9,1.0810324]
[1643797310870,0.33994348,2768.0,2767.9,1.0810324]
[1643797311667,0.33994348,2768.0,2767.9,0.90302]
[1643797311870,0.33994348,2768.0,2767.7,4.80235253]
[1643797311871,0.63994348,2768.0,2767.7,2.72132013]
[1643797312069,1.54305808,2768.0,2767.7,0.76133568]
[1643797313268,1.54305808,2768.0,2767.7,2.64194349]
[1643797313471,1.54305808,2768.0,2767.7,0.76133568]
[1643797315172,1.54305808,2768.0,2767.6,1.80607]
[1643797316376,0.90318,2767.9,2767.6,1.80607]
[1643797317832,3.0095375,2767.9,2767.6,1.80607]
[1643797318025,3.0095375,2767.9,2767.4,1.98683]
[1643797318229,3.0095375,2767.9,2767.4,1.80623]
[1643797318230,1.83030701,2767.8,2767.4,1.80623]
[1643797318428,0.3,2767.8,2767.4,1.80623]
[1643797318830,0.78169654,2767.5,2767.4,1.80623]
[1643797319032,0.78169654,2767.5,2767.3,0.1806]
[1643797319234,1.08169654,2767.5,2767.2,1.80641]
[1643797319932,0.3,2767.4,2767.2,1.80641]
[1643797320137,1.2032809,2767.4,2767.2,1.80641]
[1643797320335,1.5032809,2767.4,2767.2,1.80641]
[1643797321476,1.2032809,2767.4,2767.2,1.80641]
[1643797321676,0.3,2767.4,2767.2,1.80641]
[1643797321876,1.2031906,2767.6,2767.2,1.80641]
[1643797322080,1.5031906,2767.6,2767.2,1.80641]
[1643797322481,0.71892203,2767.4,2767.2,1.80641]
[1643797322688,1.62216113,2767.4,2767.2,1.80641]
[1643797322884,1.92216113,2767.4,2767.2,1.80641]
[1643797323484,1.2032391,2767.4,2767.2,1.80641]
[1643797324088,0.3,2767.4,2767.2,1.80641]
[1643797324285,1.5031727,2767.6,2767.2,1.80641]
[1643797324487,1.2031727,2767.6,2767.2,1.80641]
[1643797324687,2.10881529,2767.6,2767.2,1.80641]
[1643797324915,2.40881529,2767.6,2767.2,1.80641]
[1643797338782,3.31205529,2767.6,2767.1,0.9032]
[1643797338985,1.8066532,2767.4,2767.1,0.9032]
[1643797339283,2.1066532,2767.4,2767.1,0.9032]
[1643797340721,3.0100132,2767.4,2767.1,0.9032]
[1643797341122,0.3,2767.3,2767.1,0.9032]
[1643797341323,3.9133284,2767.4,2767.1,0.9032]
[1643797342927,3.9133284,2767.4,2767.1,1.80643]
[1643797343972,0.3,2767.3,2767.1,0.9032]
[1643797344173,3.9133284,2767.4,2767.1,0.9032]
[1643797344367,0.3,2767.3,2767.1,0.9032]
[1643797345069,0.3,2767.3,2767.1,2.75983551]
[1643797345568,0.3,2767.3,2767.1,0.9032]
[1643797345770,0.25,2767.3,2767.1,0.9032]
[1643797346274,3.68195283,2767.4,2767.1,0.9032]
[1643797347070,0.3,2767.3,2767.1,0.9032]
[1643797347722,3.68195283,2767.4,2767.1,0.9032]
[1643797348124,3.68195283,2767.4,2767.1,2.75115539]
[1643797349524,3.68195283,2767.4,2767.1,0.9032]
[1643797349525,1.20327,2767.3,2767.1,0.9032]
[1643797350026,1.50327,2767.3,2767.1,0.9032]
[1643797351483,1.50327,2767.3,2767.1,2.74736543]
[1643797351880,1.20327,2767.3,2767.1,2.74736543]
[1643797352084,0.3,2767.3,2767.1,3.66162949]
[1643797352283,3.07859283,2767.4,2767.2,2.75817549]
[1643797352482,3.07859283,2767.4,2767.1,0.9032]
[1643797352883,3.07859283,2767.4,2767.1,1.81746406]
[1643797353886,3.07859283,2767.4,2767.1,2.72064406]
[1643797354283,3.07859283,2767.4,2767.2,1.81744406]
[1643797354482,3.07859283,2767.4,2767.2,0.90318]
[1643797354483,3.98182283,2767.4,2767.2,0.90318]
[1643797355323,1.27193963,2767.4,2767.3,1.85659481]
[1643797355524,0.6,2767.4,2767.3,1.85659481]
[1643797355724,0.3,2767.4,2767.3,1.85659481]
[1643797355927,0.1806,2767.9,2767.3,1.85659481]
[1643797356228,0.1806,2767.9,2767.5,1.81888946]
[1643797356424,0.1806,2767.9,2767.6,1.98043818]
[1643797357028,0.1806,2767.9,2767.5,0.91581946]
[1643797357225,3.19625537,2768.0,2767.6,2.77920085]
[1643797357425,3.49625537,2768.0,2767.6,2.77920085]
[1643797357629,3.63633873,2767.9,2767.3,0.91581946]
[1643797357830,3.63633873,2767.9,2767.2,1.09641946]
[1643797357831,3.63675663,2767.8,2767.2,1.09641946]
[1643797358027,1.83022663,2767.7,2767.2,0.1806]
[1643797358231,1.53022663,2767.6,2767.2,0.1806]
[1643797358429,1.53022663,2767.6,2767.1,0.91581946]
[1643797358670,0.74374338,2767.5,2767.1,0.91581946]
[1643797359071,2.10667,2767.4,2767.1,0.91581946]
[1643797359276,5.116656,2767.4,2767.1,0.91581946]
[1643797360875,0.90333,2767.3,2767.1,1.81911946]
[1643797362733,1.20333,2767.3,2767.1,1.81911946]
[1643797363125,1.20333,2767.3,2767.1,0.9033]
[1643797363726,0.90333,2767.3,2767.1,0.9033]
[1643797365725,0.90333,2767.3,2767.1,1.81911946]
[1643797366176,0.90333,2767.3,2767.1,0.9033]
[1643797366377,0.90333,2767.3,2767.1,1.81911946]
[1643797367179,0.90333,2767.3,2767.1,0.9033]
[1643797367583,0.90247718,2767.3,2767.1,0.9033]
[1643797368686,0.90247718,2767.3,2767.0,2.72227946]
[1643797369087,0.90247718,2767.3,2767.0,1.80646]
[1643797369785,0.90247718,2767.3,2767.0,2.72227946]
[1643797370227,0.90247718,2767.3,2766.9,0.1806]
[1643797370228,1.53059437,2767.2,2766.9,0.1806]
[1643797370433,3.33756677,2767.2,2766.9,0.1806]
[1643797370628,1.80693,2767.1,2766.8,0.1806]
[1643797370830,1.80693,2767.1,2766.6,0.91581946]
[1643797370831,1.53068355,2767.0,2766.6,0.91581946]
[1643797371138,1.53068355,2767.0,2766.4,0.91581946]
[1643797371139,1.18069999,2766.9,2766.4,0.91581946]
[1643797371329,1.69709485,2766.5,2766.3,0.91581946]
[1643797371529,0.3,2766.4,2766.3,0.91581946]
[1643797372528,2.10742,2766.4,2766.2,0.91581946]
[1643797372729,2.28812,2766.4,2766.2,0.91581946]
[1643797373330,0.1807,2766.4,2766.2,0.91581946]
[1643797373527,0.1807,2766.4,2766.3,5.96581946]
[1643797373775,2.90079485,2766.5,2766.3,0.91581946]
[1643797374976,2.90079485,2766.5,2766.3,1.81934946]
[1643797376579,2.1073946,2766.5,2766.3,1.81934946]
[1643797377434,2.1073946,2766.5,2766.1,0.91581946]
[1643797377435,0.3,2766.4,2766.1,0.91581946]
[1643797377628,0.3,2766.4,2765.9,0.1807]
[1643797377629,0.86735741,2766.3,2765.9,1.09651946]
[1643797377829,1.77111321,2766.3,2765.9,1.09651946]
[1643797378028,0.3,2766.2,2765.9,1.24107746]
[1643797378428,1.46735741,2766.3,2765.9,1.09651946]
[1643797379029,0.9037671,2766.1,2765.9,1.09651946]
[1643797379430,1.5037671,2766.1,2765.9,1.09651946]
[1643797379830,1.2037671,2766.1,2765.9,1.09651946]
[1643797380044,0.3,2766.1,2766.0,0.91581946]
[1643797380335,1.9878471,2766.6,2766.0,3.17821722]
[1643797380632,0.1807,2766.7,2766.3,0.91418831]
[1643797380831,0.1807,2766.8,2766.3,0.91418831]
[1643797381031,0.1807,2766.8,2766.4,0.90348]
[1643797381270,0.69425094,2766.5,2766.4,0.90348]
[1643797381673,0.99425094,2766.5,2766.4,0.90348]
[1643797381874,0.3,2766.5,2766.4,0.90348]
[1643797382074,0.3,2766.6,2766.4,0.90348]
[1643797383078,2.1071091,2766.6,2766.4,0.90348]
[1643797383478,2.1071091,2766.6,2766.2,2.72113831]
[1643797383878,0.9035446,2766.5,2766.2,2.72113831]
[1643797384277,0.9035446,2766.5,2766.2,3.03879899]
[1643797386223,1.8071146,2766.5,2766.2,2.72113831]
[1643797387125,0.3,2766.4,2766.0,1.80714]
[1643797387322,0.90366,2766.3,2766.0,1.80714]
[1643797387530,1.8073362,2766.3,2766.0,1.80714]
[1643797387726,2.1073362,2766.3,2766.0,1.80714]
[1643797388127,0.3,2766.2,2766.0,1.80714]
[1643797390871,0.29871094,2766.2,2766.0,1.80714]
[1643797391874,0.29871094,2766.2,2765.8,1.98795]
[1643797392079,0.29871094,2766.2,2765.6,0.1807]
[1643797392080,0.9037615,2766.1,2765.6,0.1807]
[1643797392274,2.1075815,2766.1,2765.6,0.1807]
[1643797392924,0.72826148,2765.7,2765.6,0.1807]
[1643797393134,1.02826148,2765.7,2765.6,0.1807]
[1643797394928,1.02826148,2765.7,2765.4,2.72167831]
[1643797396873,0.9038048,2765.8,2765.4,2.72167831]
[1643797397072,0.9038048,2765.8,2765.5,0.91418831]
[1643797397678,1.3380463,2765.8,2765.5,0.91418831]
[1643797398076,0.3,2765.7,2765.5,0.91418831]
[1643797398281,0.3,2765.7,2765.6,0.90373]
[1643797401925,1.8074589,2766.1,2765.6,0.90373]
[1643797402127,1.8074589,2766.1,2765.7,7.13418709]
[1643797402128,0.1807,2766.0,2765.7,7.13418709]
[1643797402330,0.1807,2766.3,2765.8,0.91418831]
[1643797402529,0.1807,2766.3,2765.8,1.91418831]
[1643797403132,0.1807,2766.3,2765.9,0.91418831]
[1643797403434,0.1807,2766.3,2766.0,0.90358]
[1643797403671,0.4807,2766.3,2766.0,0.90358]
[1643797404175,1.38431,2766.3,2766.0,0.90358]
[1643797405371,1.20361,2766.3,2766.0,0.90358]
[1643797406375,0.1807,2766.4,2766.1,0.83880852]
[1643797406581,0.1807,2766.6,2766.3,6.8780124]
[1643797406777,0.1807,2766.6,2766.4,1.90341]
[1643797406980,0.1807,2767.1,2766.4,1.90341]
[1643797407277,0.1807,2767.2,2766.4,1.90341]
[1643797407532,0.95039805,2767.2,2766.7,0.41974259]
[1643797407734,0.90344,2767.1,2766.8,0.90341]
[1643797407934,0.1807,2767.0,2766.8,0.90341]
[1643797408733,0.1807,2767.0,2766.6,1.80681]
[1643797408934,0.1807,2767.0,2766.3,1.80702]
[1643797408935,1.98778,2767.0,2766.3,1.80702]
[1643797409134,0.3,2766.9,2766.3,1.80702]
[1643797409339,0.90356,2766.8,2766.3,1.80702]
[1643797409536,0.3,2766.7,2766.3,1.80702]
[1643797409734,0.6,2766.7,2766.3,1.80702]
[1643797410135,0.3,2766.9,2766.3,1.80702]
[1643797410736,0.90356,2766.7,2766.3,1.80702]
[1643797411181,1.8070853,2766.7,2766.3,1.80702]
[1643797411380,0.3,2766.6,2766.3,1.80702]